bitfinex/quotes_ETHUSD_20241231
["timestamp","ask_amount","ask_price","bid_price","bid_amount"]
[1735629549792,3.0,3364.5,3364.4,3.24369289]
[1735629550006,2.97209,3364.7,3364.4,3.56806218]
[1735629550293,3.79328,3365.0,3364.5,0.55]
[1735629550294,2.97192,3364.9,3364.5,0.55]
[1735629550503,2.97192,3364.9,3364.7,2.69369289]
[1735629550841,0.8215,3365.0,3364.7,2.69369289]
[1735629551042,5.97194,3364.8,3364.7,2.69369289]
[1735629554377,5.97194,3364.8,3364.7,3.24369289]
[1735629554583,2.9716,3365.2,3364.8,0.55]
[1735629554795,2.97146,3365.4,3365.1,2.69369289]
[1735629554946,3.0,3365.3,3365.1,2.69369289]
[1735629555408,2.97159,3365.2,3365.1,3.24369289]
[1735629555895,2.97149,3365.4,3365.2,0.55]
[1735629556047,3.0,3365.3,3365.2,0.55]
[1735629556767,2.9715,3365.3,3365.2,0.55]
[1735629558288,0.7591,3365.2,3364.5,8.9]
[1735629558605,2.97183,3365.0,3364.9,2.69369289]
[1735629558804,3.73075,3365.2,3365.0,0.55]
[1735629560014,2.97167,3365.1,3365.0,0.55]
[1735629560847,0.7591,3365.2,3364.7,0.55]
[1735629561046,0.7591,3365.2,3364.5,8.9]
[1735629561047,0.02975995,3365.1,3364.5,8.9]
[1735629561309,2.97201,3364.8,3364.5,2.69369289]
[1735629561516,2.97183,3365.0,3364.7,2.69369289]
[1735629562592,2.97194,3364.8,3364.7,2.69369289]
[1735629562771,3.78254,3364.8,3364.7,2.69369289]
[1735629563308,5.97212,3364.6,3364.5,0.55]
[1735629565704,5.97212,3364.6,3363.9,8.9]
[1735629565705,2.97245,3364.3,3364.2,2.69369289]
[1735629565878,2.97245,3364.3,3364.2,3.24369289]
[1735629567439,2.97245,3364.3,3364.2,2.69369289]
[1735629574318,2.97245,3364.3,3364.2,1.2763436]
[1735629575544,3.78155,3364.3,3364.2,1.2763436]
[1735629587888,2.97226,3364.5,3364.2,1.2763436]
[1735629588102,2.97205,3364.7,3364.4,1.2763436]
[1735629588300,2.97205,3364.7,3364.6,1.2763436]
[1735629589873,3.76388,3364.9,3364.6,1.2763436]
[1735629590086,0.792,3365.1,3364.8,1.2763436]
[1735629590287,3.76371,3365.1,3365.0,1.2763436]
[1735629592233,2.97171,3365.1,3365.0,1.2763436]
[1735629597322,0.792,3365.3,3364.4,0.55]
[1735629597527,2.97177,3365.0,3364.6,0.55]
[1735629599026,2.97186,3364.9,3364.6,0.55]
[1735629599229,2.97186,3364.9,3364.8,1.8263436]
[1735629600747,2.97186,3364.9,3364.8,1.2763436]
[1735629601289,3.75416,3364.9,3364.8,1.2763436]
[1735629602389,2.97211,3364.7,3364.1,0.55]
[1735629602720,2.97219,3364.6,3364.1,0.55]
[1735629602904,2.9724,3364.3,3364.0,10.1763436]
[1735629603101,2.97228,3364.5,3364.0,10.1763436]
[1735629603436,2.97216,3364.6,3364.2,0.55]
[1735629603638,2.97199,3364.8,3364.6,1.2763436]
[1735629604761,2.97177,3365.0,3364.7,0.55]
[1735629605036,2.97177,3365.0,3364.9,1.2763436]
[1735629612397,2.97212,3364.6,3364.3,0.55]
[1735629612639,2.97212,3364.6,3364.5,1.8263436]
[1735629613294,2.9723,3364.4,3364.2,8.9]
[1735629613494,2.97238,3364.3,3364.2,8.9]
[1735629613808,2.97238,3364.3,3364.2,10.1763436]
[1735629613991,2.97238,3364.3,3364.2,1.2763436]
[1735629617100,3.75584,3364.7,3364.3,0.55]
[1735629617301,3.75584,3364.7,3364.6,1.2763436]
[1735629622062,2.9722,3364.6,3364.1,0.55]
[1735629622268,2.9722,3364.6,3364.5,1.8263436]
[1735629622811,2.9722,3364.6,3364.5,0.55]
[1735629623044,2.9722,3364.6,3364.5,1.8263436]
[1735629629759,2.9722,3364.6,3364.0,1.2763436]
[1735629629975,2.97238,3364.4,3364.0,2.41754441]
[1735629630511,2.97238,3364.4,3364.1,0.55]
[1735629630733,2.97221,3364.5,3364.1,0.55]
[1735629631530,2.97242,3364.3,3363.9,8.9]
[1735629631737,2.97212,3364.6,3364.2,1.2763436]
[1735629631949,2.97238,3364.3,3364.2,1.2763436]
[1735629635423,2.97221,3364.5,3364.3,0.55]
[1735629635624,3.75586,3364.7,3364.3,0.55]
[1735629635939,3.75586,3364.7,3364.6,1.2763436]
[1735629635940,6.75586,3364.7,3364.6,1.2763436]
[1735629636440,2.97206,3364.7,3364.6,1.2763436]
[1735629637176,3.0,3364.8,3364.6,1.2763436]
[1735629637379,2.97197,3364.8,3364.6,1.2763436]
[1735629637675,2.97175,3365.1,3364.7,0.55]
[1735629637965,2.97175,3365.1,3365.0,1.2763436]
[1735629639246,3.00150995,3365.1,3365.0,1.2763436]
[1735629639769,3.00150995,3365.1,3364.3,0.55]
[1735629639943,2.97203,3364.8,3364.3,0.55]
[1735629640272,2.97203,3364.8,3364.3,1.74620081]
[1735629640470,0.7687,3365.2,3364.3,1.74620081]
[1735629640471,2.9718,3365.0,3364.3,1.74620081]
[1735629641132,2.9718,3365.0,3364.9,1.8263436]
[1735629642947,3.74033,3365.2,3364.9,1.8263436]
[1735629643148,6.74033,3365.2,3365.1,1.2763436]
[1735629644281,2.97142,3365.4,3365.2,0.55]
[1735629644579,3.58986039,3365.6,3365.3,1.2763436]
[1735629644876,3.0,3365.5,3365.1,0.55]
[1735629645074,5.97132,3365.5,3365.4,1.2763436]
[1735629648666,2.9715,3365.3,3364.9,0.55]
[1735629648835,0.7662,3365.4,3365.2,1.2763436]
[1735629649040,6.73761,3365.4,3365.3,1.2763436]
[1735629649444,5.97141,3365.4,3365.3,1.8263436]
[1735629653403,5.95566113,3365.4,3365.3,1.8263436]
[1735629659583,6.75536113,3365.4,3365.3,1.2763436]
[1735629660033,2.97159,3365.2,3365.1,1.2763436]
[1735629660231,3.80289,3365.2,3364.9,1.2763436]
[1735629660617,6.80289,3365.2,3365.1,1.2763436]
[1735629663107,3.80308,3365.0,3364.9,1.2763436]
[1735629663329,2.97216,3364.6,3364.0,10.1763436]
[1735629663658,2.97216,3364.6,3364.5,1.2763436]
[1735629663861,2.97229,3364.4,3364.1,0.55]
[1735629664157,2.97245,3364.3,3364.0,0.55]
[1735629664290,2.97245,3364.3,3364.0,2.7713436]
[1735629664694,2.97231,3364.4,3364.2,1.2763436]
[1735629664892,2.97231,3364.4,3364.3,1.2763436]
[1735629665516,5.97231,3364.4,3364.3,1.2763436]
[1735629665954,3.0,3364.4,3364.3,1.8263436]
[1735629666156,2.97195,3364.8,3364.4,0.55]
[1735629666330,0.8313,3365.0,3364.7,1.2763436]
[1735629666550,3.80313,3365.0,3364.9,1.2763436]
[1735629666865,6.80313,3365.0,3364.9,1.2763436]
[1735629668011,5.97183,3365.0,3364.9,1.2763436]
[1735629668208,3.0,3365.0,3364.9,0.55]
[1735629668443,3.0,3365.0,3364.9,1.8263436]
[1735629668641,2.97154,3365.3,3365.0,0.55]
[1735629668944,3.0,3365.2,3365.0,0.55]
[1735629669258,3.0,3365.2,3364.6,0.55]
[1735629669423,3.0,3365.2,3365.1,1.8263436]
[1735629670204,3.0,3365.2,3365.1,0.55]
[1735629671941,2.97159,3365.2,3365.1,0.55]
[1735629675378,3.0,3365.3,3365.1,0.55]
[1735629676567,2.97151,3365.3,3365.1,0.55]
[1735629678320,2.97151,3365.3,3365.0,2.69516424]
[1735629678321,2.97166,3365.2,3365.0,2.69516424]
[1735629679552,0.8018,3365.1,3365.0,2.69516424]
[1735629679760,2.97167,3365.1,3365.0,2.69516424]
[1735629680213,2.97167,3365.1,3365.0,3.24516424]
[1735629680411,2.97154,3365.3,3365.0,3.24516424]
[1735629680641,3.0,3365.2,3365.0,3.24516424]
[1735629681195,3.0,3365.2,3365.1,0.55]
[1735629681431,0.7683,3365.5,3365.1,0.92951642]
[1735629681432,3.0,3365.4,3365.1,0.92951642]
[1735629681632,3.0,3365.4,3365.3,3.24516424]
[1735629682839,0.7683,3365.7,3365.3,3.24516424]
[1735629683048,5.97141,3365.4,3365.3,3.24516424]
[1735629684373,5.97141,3365.4,3365.3,0.55]
[1735629684532,5.92141,3365.4,3365.3,0.55]
[1735629685348,2.97159,3365.2,3365.0,2.69516424]
[1735629685666,2.97167,3365.1,3365.0,2.69516424]
[1735629685870,2.97167,3365.1,3365.0,3.24516424]
[1735629686250,5.97167,3365.1,3364.7,2.69516424]
[1735629686549,2.97198,3364.8,3364.7,2.69516424]
[1735629687113,2.97198,3364.8,3364.6,8.9]
[1735629687368,3.78808,3364.8,3364.7,2.69516424]
[1735629687565,6.78808,3364.8,3364.7,2.69516424]
[1735629687718,5.97203,3364.7,3364.6,8.9]
[1735629688251,5.9722,3364.5,3364.4,2.69516424]
[1735629690982,2.9722,3364.5,3364.4,2.69516424]
[1735629693202,0.8161,3364.8,3364.5,0.55]
[1735629693335,2.97186,3364.9,3364.7,2.69516424]
[1735629694486,0.8161,3365.1,3364.8,1.276021]
[1735629694791,0.8161,3365.1,3365.0,1.276021]
[1735629694792,2.97172,3365.1,3365.0,1.276021]
[1735629695087,2.97155,3365.3,3365.0,1.276021]
[1735629695285,2.97155,3365.3,3365.2,1.276021]
[1735629695969,0.8161,3365.4,3365.3,0.55]
[1735629696169,0.30191006,3365.5,3365.3,0.8602042]
[1735629696376,0.61859441,3365.5,3365.3,3.55490868]
[1735629697731,0.31668435,3365.5,3365.3,3.55490868]
[1735629698801,0.8161,3365.7,3365.3,3.55490868]
[1735629699012,2.97141,3365.4,3365.3,3.24470448]
[1735629702704,2.97141,3365.4,3365.3,2.69470448]
[1735629702866,3.80001,3365.4,3365.3,2.69470448]
[1735629705161,2.97141,3365.4,3365.3,3.24470448]
[1735629713761,2.97141,3365.4,3365.3,2.69470448]
[1735629713968,2.97171,3365.1,3365.0,2.69470448]
[1735629716867,2.97197,3364.8,3364.7,2.69470448]
[1735629718237,0.8286,3365.0,3364.7,1.27605773]
[1735629718418,2.97194,3364.8,3364.7,1.27605773]
[1735629720281,6.72544,3364.8,3364.7,1.27605773]
[1735629728040,2.97194,3364.8,3364.7,1.27605773]
[1735629728285,4.48854425,3365.5,3364.8,0.55]
[1735629728482,2.97153,3365.3,3365.0,1.27605773]
[1735629728857,4.48854425,3365.5,3365.1,0.55]
[1735629729052,4.0517286,3365.5,3365.1,0.55]
[1735629729458,10.0230586,3365.5,3365.4,1.27605773]
[1735629729878,6.28801435,3365.5,3365.4,1.27605773]
[1735629732412,2.97148,3365.4,3365.3,3.24490021]
[1735629735415,0.7535,3365.7,3365.3,3.24490021]
[1735629735622,2.97115,3365.7,3365.6,2.69490021]
[1735629735770,5.97115,3365.7,3365.6,2.69490021]
[1735629738820,2.97141,3365.4,3365.3,2.69490021]
[1735629741047,2.97141,3365.4,3365.3,3.24490021]
[1735629741218,0.8025,3366.0,3365.4,0.55]
[1735629741416,0.8025,3366.0,3364.7,0.02971532]
[1735629741417,2.97102,3365.9,3365.6,0.55]
[1735629742227,2.97102,3365.9,3364.9,0.55]
[1735629742386,2.97102,3365.9,3365.8,2.69490021]
[1735629743327,2.97102,3365.9,3365.8,3.24490021]
[1735629743546,2.97091,3366.0,3365.9,0.55]
[1735629745995,2.97097,3365.9,3365.8,2.69490021]
[1735629746691,2.97097,3365.9,3365.8,3.24490021]
[1735629751491,2.97086,3366.1,3365.9,0.55]
[1735629751804,2.97088,3366.0,3365.9,0.55]
[1735629753903,0.7665,3366.7,3365.9,0.87449002]
[1735629754366,2.97071,3366.2,3365.9,0.87449002]
[1735629756548,2.9708,3366.1,3365.9,0.87449002]
[1735629756685,2.9708,3366.1,3366.0,3.24490021]
[1735629757945,2.9708,3366.1,3366.0,0.55]
[1735629758078,3.00055995,3366.1,3365.1,8.9]
[1735629758274,2.97088,3366.0,3365.9,2.69490021]
[1735629759329,0.7665,3366.2,3365.9,2.69490021]
[1735629759622,2.97088,3366.0,3365.9,2.69490021]
[1735629774348,2.97088,3366.0,3365.9,1.27524575]
[1735629777439,0.7665,3366.2,3365.9,1.27524575]
[1735629777664,2.97077,3366.2,3366.1,1.27524575]
[1735629777964,2.97062,3366.3,3366.0,1.27524575]
[1735629778165,2.97062,3366.3,3366.2,1.27524575]
[1735629786314,2.97062,3366.3,3366.2,1.5302949]
[1735629786609,2.97062,3366.3,3366.2,1.27524575]
[1735629787919,2.97062,3366.3,3365.6,8.9]
[1735629788129,2.97108,3365.8,3365.6,8.9]
[1735629788305,2.97108,3365.8,3365.7,1.27524575]
[1735629788617,2.97108,3365.8,3365.7,1.82524575]
[1735629790082,2.97093,3366.0,3365.8,0.55]
[1735629790282,2.97093,3366.0,3365.9,1.27524575]
[1735629792802,0.811,3366.2,3365.9,2.5504915]
[1735629792803,2.97072,3366.2,3365.9,2.5504915]
[1735629793115,2.97072,3366.2,3366.1,1.27524575]
[1735629794990,2.97072,3366.2,3366.1,1.82524575]
[1735629796025,2.97072,3366.2,3366.1,0.55]
[1735629796188,2.97072,3366.2,3366.1,1.82524575]
[1735629798720,2.97072,3366.2,3366.1,0.55]
[1735629799773,2.97062,3366.3,3366.1,1.27524575]
[1735629799976,2.9707,3366.2,3366.1,1.27524575]
[1735629801698,5.9707,3366.2,3366.1,1.27524575]
[1735629807513,0.7887,3366.1,3365.1,10.13566446]
[1735629807721,0.7887,3365.7,3365.2,2.7827381]
[1735629808015,0.7887,3365.7,3365.3,0.55]
[1735629808016,2.97141,3365.4,3365.3,0.55]
[1735629808871,2.97141,3365.4,3365.1,0.55]
[1735629809091,2.97141,3365.4,3365.3,1.82524575]
[1735629810597,2.97128,3365.6,3365.3,2.1352949]
[1735629810818,2.97128,3365.6,3365.5,1.27524575]
[1735629811387,2.97128,3365.6,3365.5,1.82524575]
[1735629812724,2.97128,3365.6,3365.5,1.27524575]
[1735629812926,3.75998,3365.6,3365.5,1.27524575]
[1735629816146,0.7887,3366.1,3365.6,0.55]
[1735629816381,2.97079,3366.1,3366.0,2.5504915]
[1735629816551,5.97079,3366.1,3365.7,0.23752458]
[1735629816704,2.97079,3366.1,3366.0,2.5504915]
[1735629817120,2.97079,3366.1,3366.0,1.27524575]
[1735629820275,2.97107,3365.8,3365.2,1.78566446]
[1735629821590,2.97107,3365.8,3365.2,0.55]
[1735629821878,2.97079,3366.1,3365.2,0.55]
[1735629822043,2.97111,3365.8,3365.4,0.55]
[1735629822620,2.97079,3366.1,3365.4,0.55]
[1735629822820,2.97141,3365.5,3364.9,10.13566446]
[1735629823371,0.8203,3366.0,3365.0,1.78566446]
[1735629823670,3.0,3366.1,3365.0,2.51091021]
[1735629823671,0.8203,3365.6,3365.0,2.51091021]
[1735629824033,0.8203,3365.6,3364.6,2.47132893]
[1735629824034,2.97159,3365.2,3364.7,1.23566446]
[1735629824189,2.97159,3365.2,3364.8,1.7576972]
[1735629824590,0.8203,3365.6,3364.9,0.55]
[1735629824794,3.79153,3365.6,3365.5,1.27524575]
[1735629828601,3.79153,3365.6,3365.5,1.82524575]
[1735629828602,5.97123,3365.6,3365.5,1.82524575]
[1735629828805,3.0,3365.6,3365.5,1.82524575]
[1735629829104,2.97093,3366.0,3365.6,0.55]
[1735629829259,5.97093,3366.0,3365.9,1.82524575]
[1735629833110,5.97093,3366.0,3365.9,1.67524575]
[1735629839764,5.97093,3366.0,3365.9,1.67520587]
[1735629843467,2.97093,3366.0,3365.9,2.95045162]
[1735629843962,2.97093,3366.0,3365.9,1.82524575]
[1735629844765,2.97093,3366.0,3365.9,3.1004915]
[1735629845133,5.9708,3366.1,3366.0,0.55]
[1735629845459,2.9708,3366.1,3366.0,1.82524575]
[1735629881305,2.97088,3366.0,3365.9,1.27524575]
[1735629881512,1.071488,3366.0,3365.9,1.27524575]
[1735629881691,4.042368,3366.0,3365.9,1.27524575]
[1735629886038,2.97127,3365.6,3365.1,10.14503979]
[1735629886199,0.7966,3365.5,3365.1,1.24503979]
[1735629886535,2.97149,3365.4,3365.1,1.24503979]
[1735629886721,2.97149,3365.4,3365.2,1.54361389]
[1735629887586,0.7966,3365.5,3365.3,1.27524575]
[1735629887795,3.7677,3365.8,3365.4,0.55]
[1735629888007,3.7677,3365.8,3365.7,1.27524575]
[1735629888182,4.441559,3365.8,3365.7,1.27524575]
[1735629889926,7.441559,3365.8,3365.7,1.27524575]
[1735629895337,6.7677,3365.8,3365.7,1.27524575]
[1735629897837,0.7553,3366.1,3365.8,0.55]
[1735629898036,3.00054995,3366.2,3366.0,1.27524575]
[1735629898228,3.0,3366.1,3365.2,9.45]
[1735629898431,3.0,3366.1,3365.4,0.55]
[1735629898843,2.9708,3366.1,3366.0,1.27524575]
[1735629903307,2.9708,3366.1,3366.0,1.82524575]
[1735629903606,0.7553,3366.3,3366.1,0.55]
[1735629903607,0.78505995,3366.3,3366.1,0.55]
[1735629903815,6.75567995,3366.3,3366.2,1.27524575]
[1735629904007,6.72592,3366.3,3366.2,1.27524575]
[1735629906180,5.97062,3366.3,3366.2,1.27524575]
[1735629912583,6.940251,3366.3,3365.4,8.9]
[1735629912781,3.72569,3366.6,3365.4,8.9]
[1735629912782,3.0,3366.1,3366.0,1.27524575]
[1735629913097,6.75682,3366.1,3366.0,1.27524575]
[1735629920349,5.97082,3366.1,3366.0,1.27524575]
[1735629931252,2.97062,3366.3,3365.0,5.49203554]
[1735629931253,3.0,3366.2,3365.4,8.9]
[1735629931565,2.97132,3365.5,3365.4,8.9]
[1735629931937,2.97132,3365.5,3365.4,9.45]
[1735629932873,2.97132,3365.5,3365.4,10.72524575]
[1735629933431,2.97109,3365.8,3365.5,0.55]
[1735629933634,2.97097,3365.9,3365.8,1.27524575]
[1735629933894,2.97097,3365.9,3365.5,0.55]
[1735629933895,2.97107,3365.8,3365.5,0.55]
[1735629934045,5.97107,3365.8,3365.7,1.82524575]
[1735629934674,3.0,3365.8,3365.7,1.82524575]
[1735629941587,3.0,3365.8,3365.7,10.72524575]
[1735629942490,5.97106,3365.8,3365.7,9.45]
[1735629942674,5.97106,3365.8,3365.7,10.72524575]
[1735629943387,5.97106,3365.8,3365.7,9.45]
[1735629943581,5.97106,3365.8,3365.7,10.72524575]
[1735629944676,5.97106,3365.8,3365.7,1.82524575]
[1735629950506,6.76936,3365.8,3365.7,1.82524575]
[1735629950808,6.76936,3365.8,3365.7,0.55]
[1735629950979,6.76936,3365.8,3365.7,1.82524575]
[1735629951384,5.97106,3365.8,3365.7,1.82524575]
[1735629955310,5.97106,3365.8,3365.7,0.55]
[1735629955614,5.97106,3365.8,3365.7,1.82524575]
[1735629956935,3.0,3365.8,3365.7,1.82524575]
[1735629959393,5.97106,3365.8,3365.7,1.82524575]
[1735629962335,3.0,3365.8,3365.7,1.82524575]
[1735629962495,3.0,3365.9,3365.8,0.55]
[1735629963406,2.97097,3365.9,3365.8,0.55]
[1735629968549,0.7983,3366.2,3365.7,1.27524575]
[1735629968751,2.97122,3365.7,3365.2,8.9]
[1735629968953,2.97122,3365.7,3365.3,1.32878452]
[1735629969160,2.97122,3365.7,3365.4,0.55]
[1735629971958,0.7787,3365.8,3365.4,0.55]
[1735629972262,2.97101,3365.9,3365.7,0.55]
[1735629972558,2.97101,3365.9,3365.8,1.27524575]
[1735629972965,2.97101,3365.9,3365.8,1.82524575]
[1735629977364,3.73301,3365.9,3365.8,1.82524575]
[1735629978252,2.97089,3366.0,3365.8,1.82524575]
[1735629978453,2.97089,3366.0,3365.9,1.27524575]
[1735629980073,3.74596,3366.3,3365.9,1.27524575]
[1735629980278,3.74592,3366.3,3366.2,1.27524575]
[1735629980958,4.82344158,3366.3,3366.2,1.27524575]
[1735629985485,3.74592,3366.3,3366.2,1.27524575]
[1735629988908,2.97045,3366.5,3366.2,1.27524575]
[1735629989061,2.97045,3366.5,3366.4,1.27524575]
[1735629989910,3.76795,3366.5,3366.4,1.27524575]
[1735630012528,0.7678,3366.9,3366.4,1.27524575]
[1735630012687,3.74907484,3367.3,3366.9,3.52007]
[1735630013033,3.74907484,3367.3,3367.0,3.57700615]
[1735630013199,3.74907484,3367.3,3367.1,3.51988]
[1735630013999,3.74907484,3367.3,3367.1,12.41988]
[1735630014541,4.37392065,3367.6,3367.2,11.4504915]
[1735630014721,0.39624549,3367.6,3367.5,4.24480575]
[1735630014885,2.96869,3368.5,3367.5,5.81433548]
[1735630014886,6.71589234,3368.5,3367.5,5.81433548]
[1735630015087,9.71589234,3368.5,3368.4,1.27524575]
[1735630015516,6.71589234,3368.5,3368.4,1.27524575]
[1735630016242,5.96869,3368.5,3368.4,1.27524575]
[1735630024532,5.96869,3368.5,3367.6,9.45]
[1735630024533,2.96894,3368.2,3367.5,8.9]
[1735630024870,2.96894,3368.2,3367.6,1.27524575]
[1735630024871,3.74188,3367.7,3367.6,1.27524575]
[1735630025683,2.96984,3367.2,3367.0,0.60705615]
[1735630025837,2.96984,3367.2,3367.1,1.27524575]
[1735630026037,2.96984,3367.2,3367.1,1.46347594]
[1735630026234,2.96984,3367.2,3366.0,1.27524575]
[1735630026235,2.97012,3366.9,3366.7,2.69237454]
[1735630026435,2.97017,3366.8,3366.7,2.69237454]
[1735630027022,2.97017,3366.8,3366.7,3.24237454]
[1735630028193,2.97044,3366.5,3366.4,2.69237454]
[1735630028400,2.97071,3366.2,3366.0,2.69237454]
[1735630028671,2.97057,3366.4,3366.1,0.26923745]
[1735630028840,2.97067,3366.3,3366.1,0.26923745]
[1735630031376,0.7725,3366.5,3366.1,0.26923745]
[1735630031548,0.7725,3366.5,3366.1,0.81923745]
[1735630031871,2.9707,3366.2,3366.1,0.81923745]
[1735630032074,2.9707,3366.2,3366.1,0.55]
[1735630032574,0.02975995,3366.4,3365.7,2.69237454]
[1735630032736,3.7725,3366.5,3365.7,2.69237454]
[1735630033155,3.0,3366.2,3365.8,0.55]
[1735630033442,3.7725,3366.5,3365.8,0.55]
[1735630033443,2.97089,3366.0,3365.8,0.55]
[1735630033770,2.97096,3366.0,3365.8,0.87423745]
[1735630033958,2.97106,3365.8,3365.7,2.69237454]
[1735630035668,2.97091,3366.0,3365.8,0.55]
[1735630036093,0.761,3366.2,3365.8,0.55]
[1735630036302,3.73173,3366.2,3366.1,2.69237454]
[1735630036873,3.0,3366.3,3366.1,2.69237454]
[1735630037069,2.97021,3366.8,3366.2,0.55]
[1735630037272,2.97038,3366.6,3366.4,2.69237454]
[1735630037478,5.97044,3366.5,3366.4,2.69237454]
[1735630037877,3.0,3366.4,3366.1,2.69237454]
[1735630038102,2.9707,3366.2,3366.1,2.69237454]
[1735630038309,2.9707,3366.2,3366.1,3.24237454]
[1735630038895,3.7317,3366.2,3366.1,3.24237454]
[1735630041567,2.9707,3366.2,3366.1,3.24237454]
[1735630042728,2.9707,3366.2,3366.1,0.55]
[1735630043108,0.02975995,3366.3,3365.4,8.9]
[1735630043307,2.97132,3365.5,3365.0,6.5]
[1735630043658,2.97144,3365.4,3365.0,9.19237454]
[1735630043792,2.97144,3365.4,3365.3,2.69237454]
[1735630043990,2.9716,3365.2,3365.0,9.19237454]
[1735630044222,2.9716,3365.2,3365.0,2.69237454]
[1735630045295,2.97159,3365.2,3365.1,0.55]
[1735630046350,0.761,3365.3,3364.7,2.69237454]
[1735630046652,2.97175,3365.1,3364.8,0.55]
[1735630047348,0.79075995,3365.3,3364.7,2.69237454]
[1735630047553,0.761,3365.3,3364.7,2.69237454]
[1735630048049,2.97178,3365.0,3364.7,2.69237454]
[1735630048761,2.97186,3364.9,3364.7,2.69237454]
[1735630048956,3.0,3365.2,3364.7,2.69237454]
[1735630049152,0.02975995,3365.1,3364.2,8.9]
[1735630049313,3.0,3365.0,3364.1,2.69237454]
[1735630049513,2.97242,3364.3,3364.1,2.69237454]
[1735630049916,2.97242,3364.3,3364.2,0.55]
[1735630050150,3.0,3364.6,3364.2,0.55]
[1735630050321,3.8175,3364.8,3364.2,0.87423745]
[1735630050758,2.97225,3364.5,3364.2,0.87423745]
[1735630051258,0.8175,3364.8,3364.1,2.69237454]
[1735630051415,2.9724,3364.3,3364.1,2.69237454]
[1735630053658,2.97247,3364.2,3364.1,3.24237454]
[1735630053994,2.97247,3364.2,3363.3,9.47323]
[1735630053995,0.7691,3364.2,3363.8,2.69237454]
[1735630054120,2.97273,3363.9,3363.8,2.69237454]
[1735630054317,2.97291,3363.7,3363.5,2.69237454]
[1735630054930,2.97291,3363.7,3363.6,0.55]
[1735630055755,2.97291,3363.7,3363.5,2.69237454]
[1735630057719,2.97276,3363.9,3363.5,2.69237454]
[1735630057947,2.97276,3363.9,3363.5,2.96161199]
[1735630058965,3.0,3364.0,3363.5,2.96161199]
[1735630058966,2.97286,3363.8,3363.5,2.96161199]
[1735630059520,2.97286,3363.8,3363.5,2.69237454]
[1735630061371,3.00273995,3363.7,3363.5,2.69237454]
[1735630061553,0.79885995,3363.7,3363.5,2.69237454]
[1735630061755,2.973,3363.6,3363.5,2.69237454]
[1735630063239,5.973,3363.6,3363.5,2.69237454]
[1735630063637,2.97317,3363.5,3363.2,2.69237454]
[1735630068051,2.97317,3363.5,3363.2,3.01661199]
[1735630068247,3.0,3363.6,3363.3,0.55]
[1735630068554,3.0,3363.6,3363.2,3.01661199]
[1735630068555,2.97272,3364.0,3363.6,0.55]
[1735630068784,2.9725,3364.2,3364.0,0.55]
[1735630071502,0.8107,3364.5,3364.0,0.55]
[1735630071656,3.0,3364.3,3364.2,2.69237454]
[1735630072154,2.97166,3365.2,3364.3,0.55]
[1735630072155,2.97197,3364.8,3364.3,0.55]
[1735630072333,2.97179,3365.0,3364.7,2.69237454]
[1735630072543,0.8288,3365.1,3364.8,0.55]
[1735630072744,0.8288,3365.1,3365.0,2.69237454]
[1735630072945,3.8288,3365.1,3365.0,2.69237454]
[1735630073185,3.0,3365.1,3365.0,2.69237454]
[1735630073591,2.97144,3365.4,3365.1,0.55]
[1735630073785,2.97144,3365.4,3365.3,2.69237454]
[1735630074187,5.97144,3365.4,3365.3,2.69237454]
[1735630075288,5.97157,3365.3,3365.1,0.55]
[1735630077418,5.97159,3365.2,3365.1,0.55]
[1735630078810,5.97159,3365.2,3365.0,2.69237454]
[1735630078811,2.97167,3365.1,3365.0,2.69237454]
[1735630079111,2.97187,3364.9,3364.8,0.55]
[1735630080635,2.97194,3364.8,3364.7,2.69237454]
[1735630080947,0.02975995,3365.0,3364.4,2.69237454]
[1735630081147,2.97228,3364.5,3364.2,2.69237454]
[1735630081364,2.97228,3364.5,3364.3,0.55]
[1735630082053,2.97229,3364.4,3364.3,0.55]
[1735630086233,0.7686,3364.5,3364.2,2.69237454]
[1735630086465,2.97238,3364.3,3363.3,15.4]
[1735630086626,2.97256,3364.1,3364.0,2.69237454]
[1735630087327,5.97256,3364.1,3364.0,2.69237454]
[1735630087692,6.74116,3364.1,3364.0,2.69237454]
[1735630089460,5.97256,3364.1,3364.0,2.69237454]
[1735630089897,3.0,3364.1,3364.0,3.24237454]
[1735630090098,0.7686,3364.9,3364.1,0.55]
[1735630090274,3.74045,3364.9,3364.8,2.69237454]
[1735630090600,5.9722,3364.6,3364.5,2.69237454]
[1735630092999,5.97238,3364.3,3364.2,2.69237454]
[1735630102718,2.97262,3364.1,3363.5,0.55]
[1735630102923,5.97262,3364.1,3364.0,2.69237454]
[1735630114549,3.0,3364.1,3364.0,3.24237454]
[1735630126557,5.97256,3364.1,3364.0,3.24237454]
[1735630128003,5.97256,3364.1,3364.0,2.69237454]
[1735630128220,5.97256,3364.1,3363.6,2.69237454]
[1735630128221,2.97283,3363.8,3363.6,2.69237454]
[1735630128501,2.97291,3363.7,3363.6,2.69237454]
[1735630130560,2.97317,3363.5,3363.1,1.23351358]
[1735630130783,2.97317,3363.5,3363.4,2.69237454]
[1735630131498,0.804,3363.6,3363.4,2.69237454]
[1735630133895,3.77703,3363.6,3363.4,2.69237454]
[1735630134095,0.804,3363.6,3363.4,2.69237454]
[1735630134275,2.97309,3363.5,3363.4,2.69237454]
[1735630137200,0.804,3363.6,3363.4,2.69237454]
[1735630138399,2.97297,3363.7,3363.4,2.69237454]
[1735630141583,2.97309,3363.5,3363.4,2.69237454]
[1735630141785,2.97344,3363.1,3363.0,1.23351358]
[1735630141979,3.75074,3363.1,3363.0,1.23351358]
[1735630143003,3.75074,3363.1,3362.8,2.69237454]
[1735630143004,0.7773,3363.1,3362.8,2.69237454]